[Event "Early-Titled-Tuesday-Blitz-January-30-2024"]
[Site "Chess.com"]
[Date "2024.01.30"]
[Round "7"]
[White "tarno17"]
[Black "Resignify"]
[Result "1-0"]
[WhiteElo "2075"]
[BlackElo "2262"]
[TimeControl "180+1"]
[EndTime "9:18:22 PST"]
[Termination "tarno17 won by checkmate"]

1. e4 {[%clk 0:02:53.1]} 1... d6 {[%clk 0:02:59.7]} 2. d4 {[%clk 0:02:50.8]}
2... Nf6 {[%clk 0:02:59.5]} 3. Nc3 {[%clk 0:02:48.6]} 3... g6 {[%clk 0:02:59.6]}
4. Be3 {[%clk 0:02:48.3]} 4... c6 {[%clk 0:02:59.4]} 5. Qd2 {[%clk 0:02:47.8]}
5... b5 {[%clk 0:02:59.2]} 6. f3 {[%clk 0:02:45.4]} 6... Nbd7 {[%clk 0:02:56.4]}
7. g4 {[%clk 0:02:45]} 7... Nb6 {[%clk 0:02:55.1]} 8. h4 {[%clk 0:02:41.7]} 8...
h5 {[%clk 0:02:53.5]} 9. g5 {[%clk 0:02:41.4]} 9... Nfd7 {[%clk 0:02:53.6]} 10.
Nh3 {[%clk 0:02:39.9]} 10... Bg7 {[%clk 0:02:50.8]} 11. f4 {[%clk 0:02:34.5]}
11... b4 {[%clk 0:02:48.9]} 12. Nd1 {[%clk 0:02:28.4]} 12... Rb8 {[%clk
0:02:46.2]} 13. f5 {[%clk 0:02:21.1]} 13... O-O {[%clk 0:02:28.1]} 14. Nf4
{[%clk 0:02:15.8]} 14... Kh7 {[%clk 0:02:24.2]} 15. Bd3 {[%clk 0:01:48.2]} 15...
c5 {[%clk 0:02:23.9]} 16. fxg6+ {[%clk 0:01:24]} 16... fxg6 {[%clk 0:02:23.6]}
17. Nxg6 {[%clk 0:01:23.3]} 17... Kxg6 {[%clk 0:02:00.5]} 18. e5+ {[%clk
0:01:22.1]} 18... Kf7 {[%clk 0:02:00]} 19. Bh7 {[%clk 0:00:53]} 19... Nc4 {[%clk
0:00:45]} 20. Rf1+ {[%clk 0:00:43.5]} 20... Ke6 {[%clk 0:00:36.1]} 21. d5+
{[%clk 0:00:27]} 21... Kxe5 {[%clk 0:00:26.7]} 22. Bf4+ {[%clk 0:00:27.1]} 22...
Rxf4 {[%clk 0:00:21.5]} 23. Qxf4+ {[%clk 0:00:28]} 23... Kxd5 {[%clk 0:00:19.6]}
24. Be4+ {[%clk 0:00:28.5]} 24... Kd4 {[%clk 0:00:07.5]} 25. c3+ {[%clk
0:00:27.2]} 25... bxc3 {[%clk 0:00:05.2]} 26. bxc3# {[%clk 0:00:28.1]} 1-0

[Event "Early-Titled-Tuesday-Blitz-January-30-2024"]
[Site "Chess.com"]
[Date "2024.01.30"]
[Round "7"]
[White "chess123456s"]
[Black "jjlai1111"]
[Result "0-1"]
[WhiteElo "2553"]
[BlackElo "2345"]
[TimeControl "180+1"]
[EndTime "9:18:23 PST"]
[Termination "jjlai1111 won by resignation"]

1. d4 {[%clk 0:03:00.9]} 1... d5 {[%clk 0:02:59.8]} 2. Nc3 {[%clk 0:03:00.9]}
2... Nf6 {[%clk 0:02:58.2]} 3. Bf4 {[%clk 0:03:00.8]} 3... a6 {[%clk 0:02:55.6]}
4. e3 {[%clk 0:03:01]} 4... b6 {[%clk 0:02:47]} 5. Bd3 {[%clk 0:02:53.5]} 5...
Bb7 {[%clk 0:02:47.4]} 6. Nf3 {[%clk 0:02:53]} 6... Nbd7 {[%clk 0:02:47.5]} 7.
Ne5 {[%clk 0:02:50.7]} 7... e6 {[%clk 0:02:44.1]} 8. Bg5 {[%clk 0:02:46.8]} 8...
Be7 {[%clk 0:02:37.4]} 9. f4 {[%clk 0:02:43.2]} 9... h6 {[%clk 0:02:31.7]} 10.
Bh4 {[%clk 0:02:41.5]} 10... c5 {[%clk 0:02:30.5]} 11. Qf3 {[%clk 0:02:33.3]}
11... c4 {[%clk 0:02:10]} 12. Bxc4 {[%clk 0:02:26.3]} 12... Ne4 {[%clk 0:01:43]}
13. Bxe7 {[%clk 0:02:23.9]} 13... Qxe7 {[%clk 0:01:42.7]} 14. Nxe4 {[%clk
0:02:17]} 14... dxe4 {[%clk 0:01:40.7]} 15. Qg4 {[%clk 0:02:16.1]} 15... Nxe5
{[%clk 0:01:37.3]} 16. fxe5 {[%clk 0:02:15.8]} 16... Qb4+ {[%clk 0:01:37.2]} 17.
c3 {[%clk 0:02:06.5]} 17... Qxc4 {[%clk 0:01:34.5]} 18. Qxg7 {[%clk 0:02:05.9]}
18... O-O-O {[%clk 0:01:26.6]} 19. O-O-O {[%clk 0:02:06.1]} 19... Rhg8 {[%clk
0:01:22.5]} 20. Qxf7 {[%clk 0:01:59.2]} 20... Rxg2 {[%clk 0:01:22.6]} 21. Rhg1
{[%clk 0:01:55.3]} 21... Rxg1 {[%clk 0:00:56.6]} 22. Rxg1 {[%clk 0:01:55]} 22...
Rd7 {[%clk 0:00:56.2]} 23. Qf8+ {[%clk 0:01:43.8]} 23... Kc7 {[%clk 0:00:56.4]}
24. Qxh6 {[%clk 0:01:27]} 24... Qd3 {[%clk 0:00:48.5]} 25. Rg7 {[%clk
0:01:21.4]} 25... Bd5 {[%clk 0:00:38.4]} 26. Rxd7+ {[%clk 0:01:18.8]} 26... Kxd7
{[%clk 0:00:37.2]} 27. Qg7+ {[%clk 0:01:05.9]} 27... Kc6 {[%clk 0:00:37.2]} 28.
Qg2 {[%clk 0:00:35.4]} 28... Qxe3+ {[%clk 0:00:36.7]} 29. Qd2 {[%clk 0:00:34.8]}
29... Qg1+ {[%clk 0:00:33]} 30. Kc2 {[%clk 0:00:32]} 30... e3 {[%clk 0:00:33.1]}
31. Qe2 {[%clk 0:00:29.8]} 31... Qf2 {[%clk 0:00:32.4]} 32. Kd3 {[%clk
0:00:29.1]} 32... Bc4+ {[%clk 0:00:32.2]} 33. Kxc4 {[%clk 0:00:29.7]} 33...
Qxe2+ {[%clk 0:00:32.7]} 0-1

[Event "Early-Titled-Tuesday-Blitz-January-30-2024"]
[Site "Chess.com"]
[Date "2024.01.30"]
[Round "7"]
[White "ferrufino64"]
[Black "ljuks68"]
[Result "0-1"]
[WhiteElo "2241"]
[BlackElo "2429"]
[TimeControl "180+1"]
[EndTime "9:18:24 PST"]
[Termination "ljuks68 won by resignation"]

1. d4 {[%clk 0:02:56.6]} 1... d5 {[%clk 0:02:59.7]} 2. Nf3 {[%clk 0:02:53.6]}
2... Nf6 {[%clk 0:03:00.2]} 3. e3 {[%clk 0:02:53.2]} 3... c6 {[%clk 0:02:58.8]}
4. h3 {[%clk 0:02:51.2]} 4... Bf5 {[%clk 0:02:58.6]} 5. g4 {[%clk 0:02:50.3]}
5... Bg6 {[%clk 0:02:57]} 6. Ne5 {[%clk 0:02:50.1]} 6... Nfd7 {[%clk 0:02:54.9]}
7. Nxg6 {[%clk 0:02:42.1]} 7... hxg6 {[%clk 0:02:54.4]} 8. Bg2 {[%clk
0:02:42.1]} 8... e5 {[%clk 0:02:48]} 9. dxe5 {[%clk 0:02:30.5]} 9... Nxe5 {[%clk
0:02:47.9]} 10. Nd2 {[%clk 0:02:30]} 10... Bd6 {[%clk 0:02:47.3]} 11. Nf3 {[%clk
0:02:29.9]} 11... Nxf3+ {[%clk 0:02:42.8]} 12. Qxf3 {[%clk 0:02:27.8]} 12... Nd7
{[%clk 0:02:43.3]} 13. Bd2 {[%clk 0:02:25.1]} 13... Ne5 {[%clk 0:02:42.5]} 14.
Qe2 {[%clk 0:02:25]} 14... Nc4 {[%clk 0:02:38.9]} 15. Bc3 {[%clk 0:02:21]} 15...
Be5 {[%clk 0:02:24.3]} 16. Bxe5 {[%clk 0:02:11.9]} 16... Nxe5 {[%clk 0:02:23.4]}
17. O-O-O {[%clk 0:02:10.5]} 17... Qa5 {[%clk 0:02:10.2]} 18. Kb1 {[%clk
0:02:07.7]} 18... O-O-O {[%clk 0:02:09.9]} 19. b3 {[%clk 0:01:58.6]} 19... Qb4
{[%clk 0:02:01]} 20. Rd4 {[%clk 0:01:48.9]} 20... Qb6 {[%clk 0:01:43.3]} 21.
Rhd1 {[%clk 0:01:46.2]} 21... Nc4 {[%clk 0:01:38.9]} 22. Ka1 {[%clk 0:01:35.6]}
22... Na3 {[%clk 0:01:36.3]} 23. Qd3 {[%clk 0:01:16.9]} 23... Nb5 {[%clk
0:01:06.4]} 24. Rf4 {[%clk 0:01:11.4]} 24... Rhf8 {[%clk 0:00:58.6]} 25. g5
{[%clk 0:01:01.4]} 25... Qc7 {[%clk 0:00:58.1]} 26. h4 {[%clk 0:00:53.2]} 26...
Qe5+ {[%clk 0:00:58]} 27. c3 {[%clk 0:00:34]} 27... Nxc3 {[%clk 0:00:52.5]} 28.
Rf1 {[%clk 0:00:18.2]} 28... Ne2+ {[%clk 0:00:50]} 29. Kb1 {[%clk 0:00:18.4]}
29... Nxf4 {[%clk 0:00:49.8]} 30. exf4 {[%clk 0:00:18.6]} 30... Qxf4 {[%clk
0:00:49.3]} 31. Bh3+ {[%clk 0:00:17.2]} 31... Kb8 {[%clk 0:00:49.1]} 32. f3
{[%clk 0:00:15.3]} 32... Rfe8 {[%clk 0:00:48.3]} 33. Bg4 {[%clk 0:00:14.2]}
33... Re3 {[%clk 0:00:47]} 34. Qd2 {[%clk 0:00:12.7]} 34... Rxb3+ {[%clk
0:00:45.9]} 0-1

[Event "Early-Titled-Tuesday-Blitz-January-30-2024"]
[Site "Chess.com"]
[Date "2024.01.30"]
[Round "7"]
[White "verrbaa"]
[Black "Akylbek2021"]
[Result "1-0"]
[WhiteElo "2460"]
[BlackElo "2271"]
[TimeControl "180+1"]
[EndTime "9:18:27 PST"]
[Termination "verrbaa won by resignation"]

1. e4 {[%clk 0:03:00.9]} 1... Nc6 {[%clk 0:02:56.2]} 2. Nf3 {[%clk 0:02:59.9]}
2... e5 {[%clk 0:02:56.7]} 3. Bb5 {[%clk 0:02:59.6]} 3... a6 {[%clk 0:02:57.4]}
4. Ba4 {[%clk 0:02:59.5]} 4... Nf6 {[%clk 0:02:57.7]} 5. O-O {[%clk 0:02:59.6]}
5... Be7 {[%clk 0:02:58.3]} 6. Re1 {[%clk 0:02:58.8]} 6... b5 {[%clk 0:02:59]}
7. Bb3 {[%clk 0:02:58.6]} 7... O-O {[%clk 0:02:59.7]} 8. d4 {[%clk 0:02:58.7]}
8... d6 {[%clk 0:02:56.4]} 9. c3 {[%clk 0:02:48.2]} 9... Bg4 {[%clk 0:02:49.3]}
10. Be3 {[%clk 0:02:47.6]} 10... h6 {[%clk 0:02:45.6]} 11. h3 {[%clk 0:02:45.8]}
11... Bh5 {[%clk 0:02:45.5]} 12. Nbd2 {[%clk 0:02:12.3]} 12... Re8 {[%clk
0:02:39]} 13. d5 {[%clk 0:01:49.2]} 13... Na5 {[%clk 0:02:28.4]} 14. Bc2 {[%clk
0:01:49.3]} 14... Rb8 {[%clk 0:02:12.8]} 15. b4 {[%clk 0:01:45.3]} 15... Nb7
{[%clk 0:02:05.3]} 16. a4 {[%clk 0:01:43.7]} 16... Nd7 {[%clk 0:01:34.2]} 17.
axb5 {[%clk 0:01:39.8]} 17... axb5 {[%clk 0:01:35.1]} 18. Qe2 {[%clk 0:01:38.8]}
18... Bg5 {[%clk 0:01:22.3]} 19. Bxg5 {[%clk 0:01:26.6]} 19... hxg5 {[%clk
0:01:23.2]} 20. Qxb5 {[%clk 0:01:26.6]} 20... Nf8 {[%clk 0:00:47.6]} 21. Qc6
{[%clk 0:01:09.8]} 21... Ng6 {[%clk 0:00:36.5]} 22. Ra7 {[%clk 0:01:08.1]} 22...
Qc8 {[%clk 0:00:35.2]} 23. Nxg5 {[%clk 0:00:51.2]} 23... Nf4 {[%clk 0:00:32.6]}
24. Kh2 {[%clk 0:00:51]} 24... f6 {[%clk 0:00:17.4]} 25. Ne6 {[%clk 0:00:50.6]}
25... Nxe6 {[%clk 0:00:11.6]} 26. dxe6 {[%clk 0:00:51.5]} 26... Nd8 {[%clk
0:00:04]} 27. Qxc7 {[%clk 0:00:46]} 27... Nxe6 {[%clk 0:00:04.5]} 28. Bb3 {[%clk
0:00:40.1]} 28... Bf7 {[%clk 0:00:03.4]} 29. Qxf7+ {[%clk 0:00:38.6]} 29... Kh8
{[%clk 0:00:03.8]} 30. Bxe6 {[%clk 0:00:38.7]} 1-0

[Event "Early-Titled-Tuesday-Blitz-January-30-2024"]
[Site "Chess.com"]
[Date "2024.01.30"]
[Round "7"]
[White "yobdc"]
[Black "Szparu"]
[Result "0-1"]
[WhiteElo "2565"]
[BlackElo "2768"]
[TimeControl "180+1"]
[EndTime "9:18:28 PST"]
[Termination "Szparu won by resignation"]

1. d4 {[%clk 0:02:21.8]} 1... d5 {[%clk 0:02:59.2]} 2. c4 {[%clk 0:02:21.5]}
2... e6 {[%clk 0:02:59]} 3. Nc3 {[%clk 0:02:21]} 3... c6 {[%clk 0:02:59.1]} 4.
cxd5 {[%clk 0:02:20.5]} 4... exd5 {[%clk 0:02:59.4]} 5. Nf3 {[%clk 0:02:20.9]}
5... Bd6 {[%clk 0:02:59]} 6. Qc2 {[%clk 0:02:19.9]} 6... Ne7 {[%clk 0:02:58.2]}
7. Bg5 {[%clk 0:02:19.1]} 7... h6 {[%clk 0:02:57.1]} 8. Bxe7 {[%clk 0:02:15.5]}
8... Qxe7 {[%clk 0:02:57]} 9. g3 {[%clk 0:02:15.7]} 9... Nd7 {[%clk 0:02:55.5]}
10. Bg2 {[%clk 0:02:16]} 10... Nf6 {[%clk 0:02:55.2]} 11. O-O {[%clk 0:02:16.2]}
11... O-O {[%clk 0:02:55.2]} 12. e3 {[%clk 0:02:16.3]} 12... Re8 {[%clk
0:02:55.2]} 13. Ne2 {[%clk 0:02:16.6]} 13... g6 {[%clk 0:02:52.5]} 14. Nf4
{[%clk 0:02:16.7]} 14... Bf5 {[%clk 0:02:53.1]} 15. Qb3 {[%clk 0:02:16.1]} 15...
Rab8 {[%clk 0:02:47.9]} 16. Rfe1 {[%clk 0:02:16]} 16... Ne4 {[%clk 0:02:45.7]}
17. Rac1 {[%clk 0:02:08.9]} 17... Kh7 {[%clk 0:02:37.3]} 18. Nd3 {[%clk
0:01:47.2]} 18... f6 {[%clk 0:02:35.6]} 19. Re2 {[%clk 0:01:25]} 19... g5 {[%clk
0:02:35.4]} 20. Rce1 {[%clk 0:01:24.5]} 20... h5 {[%clk 0:02:35.6]} 21. h4
{[%clk 0:01:19.4]} 21... Bg4 {[%clk 0:02:34]} 22. hxg5 {[%clk 0:01:11.1]} 22...
fxg5 {[%clk 0:02:34.3]} 23. Rc2 {[%clk 0:00:57.9]} 23... h4 {[%clk 0:02:30.6]}
24. Nfe5 {[%clk 0:00:58.1]} 24... Be6 {[%clk 0:02:23.2]} 25. g4 {[%clk
0:00:48.9]} 25... Rf8 {[%clk 0:02:18.2]} 26. f4 {[%clk 0:00:45.5]} 26... Bxe5
{[%clk 0:02:12.3]} 27. dxe5 {[%clk 0:00:41.3]} 27... Bxg4 {[%clk 0:02:11.2]} 28.
Qa4 {[%clk 0:00:19.3]} 28... Bf5 {[%clk 0:02:09.4]} 29. fxg5 {[%clk 0:00:10.2]}
29... Qxg5 {[%clk 0:02:09.6]} 30. Nf4 {[%clk 0:00:10.1]} 30... h3 {[%clk
0:02:07.2]} 31. Ree2 {[%clk 0:00:02.1]} 31... Qg3 {[%clk 0:01:55]} 32. e6 {[%clk
0:00:02.2]} 32... hxg2 {[%clk 0:01:52.4]} 33. Rxg2 {[%clk 0:00:02.4]} 33...
Qxe3+ {[%clk 0:01:52.7]} 34. Kh1 {[%clk 0:00:02.5]} 34... Qe1+ {[%clk
0:01:03.1]} 35. Kh2 {[%clk 0:00:02.6]} 35... Rf6 {[%clk 0:01:01.6]} 36. Nh3
{[%clk 0:00:02.5]} 36... Rh6 {[%clk 0:01:00.2]} 37. Qa3 {[%clk 0:00:02.5]} 37...
Rxh3+ {[%clk 0:00:58.9]} 38. Qxh3+ {[%clk 0:00:03.4]} 38... Bxh3 {[%clk
0:00:59.4]} 39. Kxh3 {[%clk 0:00:04.3]} 39... Rf8 {[%clk 0:00:57.1]} 40. Rcd2
{[%clk 0:00:03.1]} 0-1

[Event "Early-Titled-Tuesday-Blitz-January-30-2024"]
[Site "Chess.com"]
[Date "2024.01.30"]
[Round "7"]
[White "kamilianin235"]
[Black "rikchessmx"]
[Result "0-1"]
[WhiteElo "2480"]
[BlackElo "2339"]
[TimeControl "180+1"]
[EndTime "9:18:28 PST"]
[Termination "rikchessmx won on time"]

1. e4 {[%clk 0:02:50.5]} 1... c5 {[%clk 0:02:43.6]} 2. Nf3 {[%clk 0:02:46.7]}
2... e6 {[%clk 0:02:37.5]} 3. d4 {[%clk 0:02:45.4]} 3... cxd4 {[%clk 0:02:37.1]}
4. Nxd4 {[%clk 0:02:46.3]} 4... a6 {[%clk 0:02:37.2]} 5. c4 {[%clk 0:02:44.9]}
5... Qc7 {[%clk 0:02:38.1]} 6. Nc3 {[%clk 0:02:43]} 6... Nf6 {[%clk 0:02:38]} 7.
Bd3 {[%clk 0:02:42.1]} 7... h5 {[%clk 0:02:33.5]} 8. Qe2 {[%clk 0:02:34.4]} 8...
Nc6 {[%clk 0:02:24.5]} 9. Nxc6 {[%clk 0:02:25.4]} 9... dxc6 {[%clk 0:02:22.7]}
10. e5 {[%clk 0:02:21.2]} 10... Ng4 {[%clk 0:02:20.6]} 11. Bf4 {[%clk
0:02:18.6]} 11... Bc5 {[%clk 0:02:13.8]} 12. Ne4 {[%clk 0:02:04.2]} 12... Ba7
{[%clk 0:02:09.2]} 13. c5 {[%clk 0:01:02.8]} 13... Bxc5 {[%clk 0:01:54]} 14.
Nxc5 {[%clk 0:01:00.8]} 14... Qa5+ {[%clk 0:01:53.6]} 15. Bd2 {[%clk 0:00:55.4]}
15... Qxc5 {[%clk 0:01:53.3]} 16. f4 {[%clk 0:00:56.1]} 16... Qd4 {[%clk
0:01:43.9]} 17. h3 {[%clk 0:00:45.8]} 17... Nh6 {[%clk 0:01:42.6]} 18. Be3
{[%clk 0:00:45.4]} 18... Qb4+ {[%clk 0:01:41.9]} 19. Kf2 {[%clk 0:00:45.9]}
19... Nf5 {[%clk 0:01:39.3]} 20. a3 {[%clk 0:00:40.7]} 20... Qe7 {[%clk
0:01:34.2]} 21. Bxf5 {[%clk 0:00:35.8]} 21... exf5 {[%clk 0:01:33.8]} 22. b4
{[%clk 0:00:36.4]} 22... Be6 {[%clk 0:01:22.9]} 23. Bc5 {[%clk 0:00:34.7]} 23...
Qd8 {[%clk 0:01:23.1]} 24. Rad1 {[%clk 0:00:33.4]} 24... Bd5 {[%clk 0:01:23.3]}
25. Rd3 {[%clk 0:00:28.1]} 25... g5 {[%clk 0:01:22.9]} 26. Rhd1 {[%clk
0:00:24.5]} 26... gxf4 {[%clk 0:01:22.3]} 27. e6 {[%clk 0:00:18.9]} 27... Qh4+
{[%clk 0:01:16.4]} 28. Kf1 {[%clk 0:00:17.6]} 28... O-O-O {[%clk 0:01:11.9]} 29.
e7 {[%clk 0:00:14.9]} 29... Rdg8 {[%clk 0:01:08.5]} 30. Rxd5 {[%clk 0:00:09.3]}
30... cxd5 {[%clk 0:01:07.2]} 31. Rxd5 {[%clk 0:00:08.9]} 31... Qg3 {[%clk
0:01:02.8]} 32. Bd6 {[%clk 0:00:05]} 32... Qe3 {[%clk 0:00:59]} 33. Qxe3 {[%clk
0:00:02.5]} 33... fxe3 {[%clk 0:00:58.7]} 34. Be5 {[%clk 0:00:02.8]} 34... Rh6
{[%clk 0:00:53.7]} 35. Rc5+ {[%clk 0:00:02.2]} 35... Kd7 {[%clk 0:00:53.1]} 36.
Rc6 {[%clk 0:00:02]} 36... bxc6 {[%clk 0:00:52.6]} 0-1

[Event "Early-Titled-Tuesday-Blitz-January-30-2024"]
[Site "Chess.com"]
[Date "2024.01.30"]
[Round "7"]
[White "tuschessCM1"]
[Black "ACollins05"]
[Result "0-1"]
[WhiteElo "2669"]
[BlackElo "2495"]
[TimeControl "180+1"]
[EndTime "9:18:29 PST"]
[Termination "ACollins05 won by resignation"]

1. c4 {[%clk 0:02:58.5]} 1... e6 {[%clk 0:02:59.3]} 2. g3 {[%clk 0:02:52.8]}
2... d5 {[%clk 0:02:59.2]} 3. Bg2 {[%clk 0:02:53.5]} 3... Nf6 {[%clk 0:02:59]}
4. Nf3 {[%clk 0:02:54.2]} 4... dxc4 {[%clk 0:02:58.1]} 5. Qa4+ {[%clk
0:02:53.9]} 5... Nbd7 {[%clk 0:02:58.4]} 6. Qxc4 {[%clk 0:02:54.2]} 6... c5
{[%clk 0:02:59]} 7. O-O {[%clk 0:02:53.9]} 7... b6 {[%clk 0:02:57.7]} 8. Nc3
{[%clk 0:02:35.5]} 8... Bb7 {[%clk 0:02:57.1]} 9. d3 {[%clk 0:02:35.3]} 9... Be7
{[%clk 0:02:56.9]} 10. a4 {[%clk 0:02:33.9]} 10... a6 {[%clk 0:02:48.5]} 11. Rd1
{[%clk 0:02:33]} 11... O-O {[%clk 0:02:47.8]} 12. Qb3 {[%clk 0:02:33]} 12... Nd5
{[%clk 0:02:44.2]} 13. e4 {[%clk 0:02:29.8]} 13... Nb4 {[%clk 0:02:40.9]} 14. d4
{[%clk 0:02:20]} 14... Qc8 {[%clk 0:02:21.1]} 15. dxc5 {[%clk 0:01:56.6]} 15...
Bxc5 {[%clk 0:02:19.7]} 16. Bf4 {[%clk 0:01:50.7]} 16... a5 {[%clk 0:02:18.1]}
17. Nb5 {[%clk 0:01:44.6]} 17... Bxe4 {[%clk 0:02:11.9]} 18. Nd6 {[%clk
0:00:42.7]} 18... Bxd6 {[%clk 0:02:08.9]} 19. Bxd6 {[%clk 0:00:43.6]} 19... Bc2
{[%clk 0:01:32.4]} 20. Qe3 {[%clk 0:00:27.6]} 20... Bxd1 {[%clk 0:01:29.3]} 21.
Rxd1 {[%clk 0:00:28.5]} 21... Nd5 {[%clk 0:01:25.5]} 22. Qd3 {[%clk 0:00:20.6]}
22... Nc5 {[%clk 0:01:24.3]} 23. Qc2 {[%clk 0:00:18.8]} 23... Rd8 {[%clk
0:01:22.9]} 24. Ng5 {[%clk 0:00:19.1]} 24... g6 {[%clk 0:01:15.6]} 25. Be5
{[%clk 0:00:14.2]} 25... Nd7 {[%clk 0:01:09.1]} 26. Bc3 {[%clk 0:00:06.6]} 26...
Nxc3 {[%clk 0:01:06.1]} 27. bxc3 {[%clk 0:00:07.4]} 27... Rb8 {[%clk 0:01:06.1]}
28. Ne4 {[%clk 0:00:08]} 28... Nc5 {[%clk 0:01:02.1]} 29. Nd6 {[%clk 0:00:08.5]}
29... Qc7 {[%clk 0:00:57.5]} 30. Nb5 {[%clk 0:00:08.7]} 30... Rxd1+ {[%clk
0:00:55.3]} 31. Qxd1 {[%clk 0:00:09.6]} 31... Qe7 {[%clk 0:00:54.9]} 32. h4
{[%clk 0:00:09.4]} 32... Rd8 {[%clk 0:00:54.5]} 33. Qe2 {[%clk 0:00:10]} 33...
Nxa4 {[%clk 0:00:52]} 34. h5 {[%clk 0:00:09]} 34... Qc5 {[%clk 0:00:47.2]} 35.
hxg6 {[%clk 0:00:08.1]} 35... hxg6 {[%clk 0:00:48.1]} 36. Nd4 {[%clk 0:00:07.9]}
36... Nxc3 {[%clk 0:00:46.5]} 0-1

[Event "Early-Titled-Tuesday-Blitz-January-30-2024"]
[Site "Chess.com"]
[Date "2024.01.30"]
[Round "7"]
[White "AttilaTurzo"]
[Black "cristiano78"]
[Result "0-1"]
[WhiteElo "2488"]
[BlackElo "2291"]
[TimeControl "180+1"]
[EndTime "9:18:29 PST"]
[Termination "cristiano78 won by checkmate"]

1. e4 {[%clk 0:03:00.9]} 1... c5 {[%clk 0:02:40.1]} 2. Nf3 {[%clk 0:03:00.7]}
2... d6 {[%clk 0:02:38.8]} 3. d4 {[%clk 0:03:01.2]} 3... cxd4 {[%clk 0:02:38.7]}
4. Nxd4 {[%clk 0:03:02.1]} 4... Nf6 {[%clk 0:02:39.1]} 5. Nc3 {[%clk 0:03:02.7]}
5... g6 {[%clk 0:02:39.1]} 6. Be3 {[%clk 0:03:02]} 6... Bg7 {[%clk 0:02:39]} 7.
f3 {[%clk 0:03:01.7]} 7... O-O {[%clk 0:02:39.3]} 8. Bc4 {[%clk 0:03:01.4]} 8...
Nc6 {[%clk 0:02:39.3]} 9. Qd2 {[%clk 0:03:01.8]} 9... Bd7 {[%clk 0:02:34.8]} 10.
O-O-O {[%clk 0:03:01.6]} 10... Rc8 {[%clk 0:02:35]} 11. Bb3 {[%clk 0:03:01.5]}
11... Ne5 {[%clk 0:02:31.7]} 12. Bg5 {[%clk 0:03:01.7]} 12... Nc4 {[%clk
0:02:30.4]} 13. Bxc4 {[%clk 0:02:59.8]} 13... Rxc4 {[%clk 0:02:29.8]} 14. e5
{[%clk 0:03:00.3]} 14... dxe5 {[%clk 0:02:27.7]} 15. Nb3 {[%clk 0:02:51.1]}
15... Rxc3 {[%clk 0:02:06.2]} 16. Qxc3 {[%clk 0:02:40.3]} 16... Qc8 {[%clk
0:02:05.4]} 17. Qxc8 {[%clk 0:02:37.3]} 17... Bxc8 {[%clk 0:02:04.1]} 18. Rhe1
{[%clk 0:02:31.9]} 18... h6 {[%clk 0:02:02.7]} 19. Be3 {[%clk 0:02:27.1]} 19...
Bf5 {[%clk 0:01:57.4]} 20. c3 {[%clk 0:02:21.2]} 20... b6 {[%clk 0:01:55]} 21.
Nd2 {[%clk 0:02:17.9]} 21... e6 {[%clk 0:01:50.4]} 22. Nc4 {[%clk 0:02:05.7]}
22... h5 {[%clk 0:01:41.8]} 23. Nxe5 {[%clk 0:02:04]} 23... Nd5 {[%clk
0:01:39.4]} 24. Bd2 {[%clk 0:02:02.3]} 24... Rc8 {[%clk 0:01:33.3]} 25. a3
{[%clk 0:01:51.9]} 25... h4 {[%clk 0:01:22.8]} 26. g4 {[%clk 0:01:50.9]} 26...
hxg3 {[%clk 0:01:20.8]} 27. hxg3 {[%clk 0:01:51.8]} 27... Bxe5 {[%clk
0:01:09.2]} 28. Rxe5 {[%clk 0:01:50.6]} 28... f6 {[%clk 0:01:10.1]} 29. Ree1
{[%clk 0:01:47.1]} 29... e5 {[%clk 0:01:08.5]} 30. Be3 {[%clk 0:01:40.7]} 30...
Ne7 {[%clk 0:00:58.5]} 31. Rd6 {[%clk 0:01:36.6]} 31... Kf7 {[%clk 0:00:57.9]}
32. Red1 {[%clk 0:01:36.8]} 32... g5 {[%clk 0:00:53.4]} 33. Rd8 {[%clk
0:01:33.2]} 33... Rc7 {[%clk 0:00:51.4]} 34. g4 {[%clk 0:01:29.4]} 34... Be6
{[%clk 0:00:50]} 35. Rh8 {[%clk 0:01:27.6]} 35... Kg7 {[%clk 0:00:35.3]} 36.
Rdh1 {[%clk 0:01:26.2]} 36... Bg8 {[%clk 0:00:34.1]} 37. R8h6 {[%clk 0:01:21.8]}
37... Nd5 {[%clk 0:00:31.3]} 38. Bd2 {[%clk 0:01:17.4]} 38... b5 {[%clk
0:00:29.9]} 39. Kd1 {[%clk 0:01:16.9]} 39... a5 {[%clk 0:00:29.7]} 40. Ke2
{[%clk 0:01:17]} 40... b4 {[%clk 0:00:27.3]} 41. axb4 {[%clk 0:01:14.2]} 41...
axb4 {[%clk 0:00:27.4]} 42. cxb4 {[%clk 0:01:08.9]} 42... Rc2 {[%clk 0:00:24.7]}
43. R6h2 {[%clk 0:00:56.6]} 43... Rxb2 {[%clk 0:00:23.6]} 44. Kd3 {[%clk
0:00:56.1]} 44... Nxb4+ {[%clk 0:00:20.1]} 45. Kc3 {[%clk 0:00:55.9]} 45... Rb3#
{[%clk 0:00:19.4]} 0-1